[Event "Romanian-ch Youth Open U16 2024"]
[Site "Eforie Nord"]
[Date "2024.04.14"]
[Round "4.2"]
[White "Magold, Filip"]
[Black "Craciun, Sasha-Matei"]
[Result "1-0"]
[ECO "C93"]
[WhiteElo "2408"]
[BlackElo "2190"]
[Annotator "TA"]
[PlyCount "101"]
[EventDate "2024.04.10"]
[EventType "swiss"]
[EventCountry "ROU"]
[SourceTitle "playchess.com"]
[Source "ChessBase"]
[SourceQuality "1"]
[TimeControl "5400+30"]

{[%evp 27,101,4,30,13,23,21,25,26,33,32,34,25,35,27,30,15,16,14,58,20,60,30,37,33,49,46,39,41,43,34,25,28,27,18,17,19,27,0,0,0,0,0,0,0,0,6,17,16,37,20,45,28,23,15,15,12,33,1,15,0,0,0,305,297,380,383,373,355,594,591,972,799,1000,909,951,913]} 1. e4 {[%emt 0:00:25]} e5 {[%emt 0:00:07]} 2. Nf3 {[%emt 0:00:04]} Nc6 {[%emt 0:00:05]} 3. Bb5 {[%emt 0:00:03][%cal Bf1b5,Bb5a4,Ba4b3][%mdl 32]} a6 {[%emt 0:00:08]} 4. Ba4 {[%emt 0:00:04]} Nf6 {[%emt 0:00:06]} 5. O-O {[%emt 0:00:05]} Be7 {[%emt 0:00:03]} 6. Re1 {[%emt 0:00:18]} b5 {[%emt 0:00:06]} 7. Bb3 {[%emt 0:00:04]} d6 {[%emt 0:00:05]} 8. c3 {[%emt 0:00:05]} O-O {[%emt 0:00:51]} 9. h3 {[%emt 0:00:10]} Bb7 {[%emt 0:00:03]} 10. d4 {[%emt 0:00:25]} Re8 {[%emt 0:00:10]} 11. Ng5 {[%emt 0:00:09]} Rf8 {[%emt 0:00:06]} 12. Nf3 {[%emt 0:00:03]} Re8 {[%emt 0:00:11]} 13. Nbd2 {[%emt 0:00:15]} Bf8 {[%emt 0:00:07]} 14. Bc2 {[%emt 0:00:57]} h6 {[%emt 0:00:37]} 15. b3 {[%emt 0:00:25]} g6 {[%emt 0:05:30]} 16. Bb2 {[%emt 0:01:27]} Bg7 {[%emt 0:01:02]} 17. d5 {[%emt 0:00:37] White has an edge.} Nb8 {[%emt 0:00:07][%cal Bc6b8,Bb8d7,Bd7f8][%mdl 32]} 18. c4 {[%emt 0:03:49]} c6 {[%emt 0:05:01]} 19. a4 {[%emt 0:04:34]} Nbd7 {[%emt 0:08:48]} 20. Ba3 {[%emt 0:11:36]} Qc7 {[%emt 0:14:00]} 21. Bd3 {[%emt 0:04:58]} bxa4 {[%emt 0:09:30]} 22. bxa4 {[%emt 0:00:51]} c5 {[%emt 0:02:54]} 23. Nb3 {[%emt 0:00:35]} Nf8 {[%emt 0:07:53]} 24. Bc1 {[%emt 0:04:54]} Bc8 {[%emt 0:01:33]} 25. Bd2 {[%emt 0:00:31]} Bd7 {[%emt 0:01:12]} 26. Ba5 {[%emt 0:03:10]} Qc8 {[%emt 0:05:52]} 27. Nbd2 {[%emt 0:00:28]} Rb8 {[%emt 0:01:00]} 28. Qc2 {[%emt 0:00:54]} Re7 {[%emt 0:03:26]} 29. Reb1 {[%emt 0:03:04] Black must now prevent Rxb8.} Be8 $1 {[%emt 0:01:11]} 30. Ra3 {[%emt 0:20:08]} Reb7 {[%emt 0:03:59]} 31. Rab3 {[%emt 0:02:23]} Qd7 {[%emt 0:02:47]} 32. Qa2 {[%emt 0:03:06]} Rxb3 {[%emt 0:03:46]} 33. Rxb3 {[%emt 0:00:04]} Rxb3 {[%emt 0:01:03]} 34. Qxb3 {[%emt 0:00:05]} Qxa4 {[%emt 0:00:14]} 35. Qb6 {[%emt 0:00:12][%csl LRa6,LRd6]} Bd7 {[%emt 0:06:03]} 36. Qxa6 {[%emt 0:04:36]} Ne8 {[%emt 0:01:53]} 37. Qb6 {[%emt 0:01:33]} Bf6 {[%emt 0:00:48]} 38. Nb1 {[%emt 0:02:00][%cal Bd2b1,Bb1c3,Bc3b5,Bb5d6][%mdl 32]} Bc8 {[%emt 0:03:31]} 39. Nc3 {[%emt 0:02:04]} Qa1+ {[%emt 0:03:47]} 40. Bf1 {[%emt 0:00:26]} Be7 {[%emt 0:02:19]} 41. Nb5 {[%emt 0:01:05]} Qb2 {[%emt 0:04:41]} 42. Qb8 {[%emt 0:09:27]} Bd7 {[%emt 0:00:06]} 43. Bd8 {[%emt 0:00:05]} Bxd8 {[%emt 0:01:52]} 44. Qxd8 {[%emt 0:00:02] [#] aiming for Qe7.} Qb1 $2 {[%emt 0:01:27][%mdl 8192]} (44... Kg7 $11) 45. Qe7 $18 {[%emt 0:02:54]} Qxe4 {[%emt 0:01:35]} 46. Nxd6 {[%emt 0:00:06]} Nxd6 {[%emt 0:00:06]} 47. Qxd6 {[%emt 0:00:03]} Qf4 $2 {[%emt 0:01:25] [#]} (47... Bf5 {was called for.} 48. Nxe5 (48. Qxc5 Nd7 $18) 48... Nh7) 48. Nxe5 {[%emt 0:00:24] White is clearly winning.} ({Not} 48. Qxe5 Qxe5 49. Nxe5 Bc8 $16) 48... Kg7 {[%emt 0:00:40]} 49. g3 {[%emt 0:00:29]} Qf5 {[%emt 0:00:32]} 50. Bd3 {[%emt 0:00:10]} Qxh3 {[%emt 0:00:15]} 51. Qe7 {[%emt 0:00:05] Weighted Error Value: White=0.07 (flawless) /Black=0.37.  Loses game:     	---       	Black=1      Mistake:       	---       	Black=1      Inaccurate:     	White=3     	Black=3      OK:         	White=10    	Black=12     Best:        	White=3     	Black=1      Strong:       	---       	Black=1} 1-0

[Event "Romanian-ch Youth Open U16 2024"]
[Site "Eforie Nord"]
[Date "2024.04.15"]
[Round "5.1"]
[White "Radu, David Cr."]
[Black "Magold, Filip"]
[Result "0-1"]
[ECO "B22"]
[WhiteElo "2237"]
[BlackElo "2408"]
[Annotator "TA"]
[PlyCount "92"]
[EventDate "2024.04.10"]
[EventType "swiss"]
[EventCountry "ROU"]
[SourceTitle "playchess.com"]
[Source "ChessBase"]
[SourceQuality "1"]
[TimeControl "5400+30"]

{[%evp 11,92,-16,-19,-22,-5,-24,-10,-24,-17,-33,-13,-20,-21,-26,-18,-34,-29,-38,-29,-37,-37,-35,-20,-20,-18,-19,6,0,0,0,0,-21,0,-38,-37,-39,-35,-42,-48,-41,-16,-9,-10,-16,-6,-43,-43,-64,-45,-60,-46,-53,-56,-49,-43,-209,-185,-283,-247,-273,-254,-366,-391,-390,-375,-639,-570,-482,-520,-543,-540,-474,-410,-622,-530,-928,-920,-1016,-993,-819,-849,-729,-582]} 1. e4 {[%emt 0:00:10]} c5 {[%emt 0:00:18]} 2. c3 {[%emt 0:00:30]} e6 {[%emt 0:00:05]} 3. Nf3 {[%emt 0:03:07]} d5 {[%emt 0:00:14]} 4. exd5 {[%emt 0:02:41]} exd5 {[%emt 0:00:39]} 5. d4 {[%emt 0:03:21]} Nc6 {[%emt 0:00:19]} 6. dxc5 {[%emt 0:03:23]} Bxc5 {[%emt 0:00:17]} 7. Bd3 {[%emt 0:00:13]} Qe7+ {[%emt 0:05:03]} 8. Be2 {[%emt 0:02:48][%cal Oc1g5]} Nf6 {[%emt 0:00:18]} 9. O-O {[%emt 0:00:09] The position is equal.} O-O {[%emt 0:00:32]} 10. Bf4 {[%emt 0:10:08]} Bg4 {[%emt 0:01:50]} 11. Nbd2 {[%emt 0:01:42]} Rfe8 {[%emt 0:02:09]} 12. Bd3 {[%emt 0:00:47]} Ne4 {[%emt 0:11:11]} 13. Qc2 {[%emt 0:04:19]} Qf6 {[%emt 0:01:15]} 14. Be3 {[%emt 0:02:41]} Bxe3 {[%emt 0:04:12]} 15. fxe3 {[%emt 0:00:38][%cal Rd2e4]} Qh6 {[%emt 0:06:49]} 16. Rae1 {[%emt 0:01:26]} Nxd2 {[%emt 0:00:12]} 17. Qxd2 {[%emt 0:00:59]} Bxf3 {[%emt 0:00:16]} 18. Rxf3 {[%emt 0:01:52] [#] Threatens to win with Rh3.} g6 {[%emt 0:01:36]} 19. Bb5 {[%emt 0:00:27]} Re6 {[%emt 0:05:59]} 20. Bxc6 {[%emt 0:13:07]} (20. Qxd5 Rd8 21. Bxc6 Rxd5 22. Bxd5 Re7 $16) 20... bxc6 {[%emt 0:02:07]} 21. Qd4 {[%emt 0:00:04]} Qg7 {[%emt 0:03:16]} 22. Ref1 {[%emt 0:01:13]} f5 {[%emt 0:00:08]} 23. Qxg7+ {[%emt 0:17:35]} Kxg7 $15 {[%emt 0:00:07][%mdl 4096] Endgame. KRR-KRR} 24. Rd1 {[%emt 0:00:48]} Re4 {[%emt 0:01:46]} 25. Kf2 {[%emt 0:00:42]} Ra4 {[%emt 0:01:11]} 26. a3 {[%emt 0:01:02]} Rb8 {[%emt 0:01:59]} 27. Rd2 {[%emt 0:00:03]} a5 {[%emt 0:04:50]} 28. Ke2 {[%emt 0:05:51]} Re8 {[%emt 0:02:45]} 29. Rd3 {[%emt 0:01:16]} Rae4 {[%emt 0:03:25] Black is more active.} 30. Kd2 {[%emt 0:00:58]} Kf6 {[%emt 0:01:29]} 31. Rf4 {[%emt 0:04:21]} Ke5 {[%emt 0:04:29]} 32. Rd4 {[%emt 0:04:27]} Rb8 $1 {[%emt 0:00:44]} 33. Rdxe4+ $2 {[%emt 0:00:03] This costs White the game.} (33. Rfxe4+ $15 fxe4 34. Kc2) 33... dxe4 {[%emt 0:00:14] KR-KR} ({Worse is} 33... fxe4 34. Kc2 $15) 34. Kc2 {[%emt 0:00:06]} (34. b4 {is a better defense.}) 34... g5 $19 {[%emt 0:01:04]} 35. Rf1 {[%emt 0:02:03]} f4 {[%emt 0:00:49]} 36. a4 {[%emt 0:04:32]} (36. b3 $142) 36... c5 {[%emt 0:00:38]} 37. g3 {[%emt 0:01:18]} fxe3 {[%emt 0:07:24] [#] ...Rd8 would now be deadly.} 38. g4 $2 {[%emt 0:00:32]} (38. Re1 Rf8 39. Rxe3) 38... e2 {[%emt 0:00:19]} 39. Rf5+ {[%emt 0:00:15]} Kd6 {[%emt 0:00:51] ( -> ...e3)} 40. Kd2 {[%emt 0:00:04]} Rxb2+ {[%emt 0:00:04]} 41. Ke1 {[%emt 0:00:04]} h6 {[%emt 0:01:05]} 42. c4 {[%emt 0:03:15]} (42. h4 $142 gxh4 43. Rh5) 42... Rc2 {[%emt 0:00:30] Black is clearly winning.} 43. Rd5+ {[%emt 0:00:36]} Kc6 {[%emt 0:00:05]} 44. Rd8 {[%emt 0:00:15]} Rxc4 {[%emt 0:00:06]} 45. Kxe2 {[%emt 0:00:03]} Rxa4 {[%emt 0:00:09]} 46. Ke3 {[%emt 0:00:03]} Ra2 {[%emt 0:00:14] Weighted Error Value: White=0.47/Black=0.09 (flawless) .  Loses game:     	White=1     	---        Mistake:       	White=4     	---        Inaccurate:     	White=3     	---        OK:         	White=14    	Black=15     Best:        	White=1     	Black=2      Strong:       	---       	Black=1} 0-1

[Event "Romanian-ch Youth Open U16 2024"]
[Site "Eforie Nord"]
[Date "2024.04.15"]
[Round "5.2"]
[White "Cnejev, Vladimir-Alexandru"]
[Black "Coicev, Matei-Andrei"]
[Result "1-0"]
[ECO "C02"]
[WhiteElo "2353"]
[BlackElo "2230"]
[Annotator "TA"]
[PlyCount "55"]
[EventDate "2024.04.10"]
[EventType "swiss"]
[EventCountry "ROU"]
[SourceTitle "playchess.com"]
[Source "ChessBase"]
[SourceQuality "1"]
[TimeControl "5400+30"]

{[%evp 10,55,0,0,-2,-34,-40,-58,-42,-49,-36,-54,0,-2,0,-26,-35,-33,12,7,0,8,27,22,18,0,97,86,90,83,150,143,476,469,539,549,597,391,393,392,408,408,488,491,600,607,889,860]} 1. e4 {[%emt 0:03:52]} c5 {[%emt 0:00:21]} 2. Nf3 {[%emt 0:00:09]} Nc6 {[%emt 0:00:32]} 3. c3 {[%emt 0:00:46]} e6 {[%emt 0:02:28]} 4. d4 {[%emt 0:01:01]} d5 {[%emt 0:00:50]} 5. e5 {[%emt 0:05:02]} Bd7 {[%emt 0:00:26]} 6. Bd3 {[%emt 0:00:33]} cxd4 {[%emt 0:00:42]} 7. O-O {[%emt 0:00:13]} dxc3 {[%emt 0:01:49]} 8. Nxc3 {[%emt 0:02:58]} a6 {[%emt 0:02:57] Black is slightly better.} 9. Re1 {[%emt 0:01:32]} Nge7 {[%emt 0:06:21]} 10. Bg5 {[%emt 0:04:06]} Qb8 {[%emt 0:04:21]} (10... Nb4 $15) 11. Rc1 $11 {[%emt 0:03:34]} Ng6 {[%emt 0:03:31]} 12. Bxg6 {[%emt 0:16:30]} hxg6 {[%emt 0:00:37]} 13. Na4 {[%emt 0:01:46]} b5 {[%emt 0:10:11]} 14. Nc5 {[%emt 0:00:44]} Bxc5 {[%emt 0:01:41]} 15. Rxc5 {[%emt 0:00:01]} Qb7 {[%emt 0:06:52] Black is weak on the dark squares} 16. Qd2 {[%emt 0:02:57]} Rc8 {[%emt 0:08:35]} 17. Qf4 {[%emt 0:16:39]} Na7 {[%emt 0:05:44]} (17... b4 $11 {keeps the balance.}) 18. Rxc8+ $16 {[%emt 0:01:23]} Nxc8 {[%emt 0:01:18]} 19. Rc1 {[%emt 0:11:14]} a5 {[%emt 0:06:07] [#] Prevents Qb4.} (19... d4 $142) 20. Qd4 $1 $40 {[%emt 0:05:00][%mdl 128] White wants a kill. White is much more active.} Rf8 $2 {[%emt 0:06:35][%mdl 8192] Black cannot hold the game after this.} (20... Rh5 $16 21. b3 Qb8) 21. Qh4 $18 {[%emt 0:02:46]} Bc6 {[%emt 0:04:02]} 22. Qh7 {[%emt 0:12:24]} f6 {[%emt 0:17:46]} 23. Qxg6+ {[%emt 0:00:04]} Qf7 {[%emt 0:00:25]} 24. Qxf7+ {[%emt 0:00:22]} Rxf7 {[%emt 0:00:19]} 25. exf6 {[%emt 0:02:12]} ({Don't play} 25. Rxc6 Ne7 $18) 25... gxf6 {[%emt 0:02:28]} 26. Rxc6 {[%emt 0:00:09] White is clearly winning.} Ne7 {[%emt 0:00:14]} 27. Ra6 {[%emt 0:00:10]} fxg5 {[%emt 0:00:18]} 28. Ra8+ {[%emt 0:00:11] Weighted Error Value: White=0.16 (very precise) /Black=0.52.  Loses game:     	---       	Black=1      Mistake:       	---       	Black=3      Inaccurate:     	White=3     	Black=2      OK:         	White=11    	Black=3      Best:        	White=1     	Black=1      Strong:       	White=1     	---} (28. Rxe6 Rf4 29. Nxg5 Rc4 $16) 1-0

[Event "Romanian-ch Youth Open U16 2024"]
[Site "Eforie Nord"]
[Date "2024.04.16"]
[Round "6.1"]
[White "Magold, Filip"]
[Black "Cnejev, Vladimir-Alexandru"]
[Result "1/2-1/2"]
[ECO "C88"]
[WhiteElo "2408"]
[BlackElo "2353"]
[Annotator "TA"]
[PlyCount "41"]
[EventDate "2024.04.10"]
[EventType "swiss"]
[EventCountry "ROU"]
[SourceTitle "playchess.com"]
[Source "ChessBase"]
[SourceQuality "1"]
[TimeControl "5400+30"]

{[%evp 19,41,0,5,-13,-23,-18,0,0,0,0,44,62,116,109,96,109,104,2,4,0,0,0,27,-7]} 1. e4 {[%emt 0:00:21]} e5 {[%emt 0:02:22]} 2. Nf3 {[%emt 0:00:05]} Nc6 {[%emt 0:00:06]} 3. Bb5 {[%emt 0:00:02][%cal Bf1b5,Bb5a4,Ba4b3][%mdl 32]} a6 {[%emt 0:00:07]} 4. Ba4 {[%emt 0:00:04]} Nf6 {[%emt 0:00:07]} 5. O-O {[%emt 0:00:03]} Be7 {[%emt 0:00:15]} 6. Re1 {[%emt 0:00:05]} b5 {[%emt 0:00:16]} 7. Bb3 {[%emt 0:00:02]} O-O {[%emt 0:00:22]} 8. h3 {[%emt 0:00:02]} Bb7 {[%emt 0:03:02]} 9. c3 {[%emt 0:01:29]} d5 {[%emt 0:03:04]} 10. exd5 {[%emt 0:08:12]} Nxd5 {[%emt 0:01:07]} 11. d4 {[%emt 0:07:09]} exd4 {[%emt 0:02:55]} 12. cxd4 {[%emt 0:04:32]} Bf6 {[%emt 0:10:22]} 13. Nc3 {[%emt 0:00:46] The position is equal.} Nxc3 {[%emt 0:02:42]} 14. bxc3 {[%emt 0:02:02]} b4 {[%emt 0:07:43]} 15. Rb1 {[%emt 0:13:29]} Qd6 {[%emt 0:18:15] [#]} ({Better is} 15... a5 $14) 16. Ng5 $1 $16 {[%emt 0:10:16]} Bxg5 {[%emt 0:08:31]} 17. Bxg5 {[%emt 0:00:07]} Qg6 {[%emt 0:16:01] [#]} 18. Qg4 {[%emt 0:06:17]} (18. h4 $1 $16 {d5 would now be deadly.} Rae8 19. Rxe8 Rxe8 20. d5) 18... bxc3 $11 {[%emt 0:04:35]} 19. Be3 {[%emt 0:17:43] This pair of bishops is nice.} Qxg4 {[%emt 0:01:53]} 20. hxg4 {[%emt 0:00:51]} Na5 {[%emt 0:08:47]} 21. Rbc1 {[%emt 0:09:09] Weighted Error Value: White=0.17 (very precise) /Black=0.15 (very precise) .  Mistake:       	White=1     	Black=1      Inaccurate:     	White=1     	Black=2      OK:         	White=2     	Black=4      Best:        	---       	Black=1      Strong:       	White=1     	---} 1/2-1/2

[Event "Romanian-ch Youth Open U16 2024"]
[Site "Eforie Nord"]
[Date "2024.04.16"]
[Round "6.2"]
[White "Vedmediuc, Artiom"]
[Black "Radu, David Cr."]
[Result "1/2-1/2"]
[ECO "C70"]
[WhiteElo "2034"]
[BlackElo "2237"]
[Annotator "TA"]
[PlyCount "128"]
[EventDate "2024.04.10"]
[EventType "swiss"]
[EventCountry "ROU"]
[SourceTitle "playchess.com"]
[Source "ChessBase"]
[SourceQuality "1"]
[TimeControl "5400+30"]

{[%evp 9,128,36,33,34,37,35,28,32,33,17,32,11,47,61,95,83,131,61,59,58,83,65,83,75,94,103,68,70,63,58,97,76,202,212,206,154,146,129,118,120,122,90,103,-5,-7,-24,-19,-23,-29,-38,-17,-29,0,0,0,-33,-33,-41,-47,-40,-37,-45,0,-61,0,-8,62,0,66,0,0,0,0,0,0,0,19,19,19,-739,-733,-657,-60,-756,0,0,0,0,0,0,0,0,0,0,0,0,0,0,0,0,0,0,0,0,0,0,0,0,0,0,0,0,0,0,0,0,0,0,0,0,0]} 1. e4 {[%emt 0:00:03]} e5 {[%emt 0:00:23]} 2. Nf3 {[%emt 0:00:18]} Nc6 {[%emt 0:00:08]} 3. Bb5 {[%emt 0:00:09]} a6 {[%emt 0:00:10]} 4. Ba4 {[%emt 0:00:07]} Nge7 {[%emt 0:00:49]} 5. c3 {[%emt 0:02:01]} Ng6 {[%emt 0:00:35]} 6. d4 {[%emt 0:10:36]} exd4 {[%emt 0:00:41]} 7. cxd4 {[%emt 0:00:10]} Bb4+ {[%emt 0:00:12]} 8. Nc3 {[%emt 0:01:23] White has an edge.} d5 {[%emt 0:02:38]} 9. e5 {[%emt 0:02:46]} O-O {[%emt 0:07:35]} 10. O-O {[%emt 0:12:17]} b5 {[%emt 0:01:22]} 11. Bb3 {[%emt 0:04:47]} Bxc3 {[%emt 0:03:38]} 12. bxc3 {[%emt 0:00:05]} Bf5 {[%emt 0:00:06]} (12... Na5 $142) 13. Bg5 {[%emt 0:08:25]} (13. Ne1 $1 $16) 13... Qd7 $14 {[%emt 0:01:30]} 14. Ne1 {[%emt 0:01:22]} Na5 {[%emt 0:27:29][%cal Oc7c5]} 15. Nd3 {[%emt 0:01:46]} Nc4 {[%emt 0:01:42]} 16. Nc5 {[%emt 0:01:26]} Qc6 {[%emt 0:00:46][%cal Og6e5]} 17. Qf3 $36 {[%emt 0:04:21][%mdl 2048] Keeping Black busy.} Bc8 {[%emt 0:07:38][%cal Og6e5]} 18. Nd3 {[%emt 0:05:02] White is more active.} h6 {[%emt 0:01:14]} 19. Bc1 {[%emt 0:02:50]} Be6 {[%emt 0:02:06]} 20. Bc2 {[%emt 0:06:35]} f5 {[%emt 0:10:07]} (20... a5 $16 {might work better.}) 21. a4 $18 {[%emt 0:06:01]} Nb6 {[%emt 0:02:04]} 22. Nb4 {[%emt 0:03:09]} Qd7 {[%emt 0:03:06]} 23. axb5 {[%emt 0:00:07]} axb5 {[%emt 0:00:33]} 24. Rxa8 {[%emt 0:00:07]} Rxa8 {[%emt 0:00:27]} 25. Qh5 {[%emt 0:03:05]} Qf7 {[%emt 0:02:00][%cal Og6e5]} 26. Nd3 {[%emt 0:01:09] [#]} (26. Qe2 $16) 26... Nxe5 $1 $11 {[%emt 0:02:40]} 27. Qe2 {[%emt 0:03:12]} (27. Qxf7+ Nxf7) 27... Nxd3 {[%emt 0:04:21]} 28. Qxd3 {[%emt 0:00:03]} Nc4 {[%emt 0:01:25]} 29. Re1 {[%emt 0:01:56]} Re8 {[%emt 0:02:29]} 30. Bf4 {[%emt 0:01:50]} Bd7 {[%emt 0:01:09]} 31. Ra1 {[%emt 0:01:02]} c6 {[%emt 0:01:51]} 32. h3 {[%emt 0:00:34]} g5 {[%emt 0:00:41]} 33. Bc7 {[%emt 0:01:03]} Bc8 {[%emt 0:01:27]} (33... Re7 {is more complex.} 34. Ra8+ Kg7 35. Kh2 Re1) 34. Bb8 {[%emt 0:02:41]} Re7 {[%emt 0:04:35] Dodges Ba7} 35. Qg3 {[%emt 0:03:04]} Qe8 {[%emt 0:03:48]} 36. Ra8 {[%emt 0:03:05]} ({White should play} 36. Bd3 $11) 36... Bb7 {[%emt 0:01:08]} (36... Bd7 $1 $15 37. Ra1 Re2) 37. Ra7 {[%emt 0:00:52]} Re1+ 38. Kh2 {[%emt 0:00:30]} Qf7 {[#]} ({Black should try} 38... Qe2 $1 $11 39. Qc7 (39. Bxf5 Nd2 $11) 39... Qxf2 40. Qd8+ (40. Rxb7 $2 Qg1+ 41. Kg3 Re3#) 40... Kg7 41. Rxb7+ Kg6) 39. Bxf5 {[%emt 0:00:30]} Qxf5 40. Rxb7 {[%emt 0:00:30]} Qc8 41. Rc7 {[%emt 0:00:30]} Qe8 {[%cal Oc4d2]} (41... Qxb8 $2 42. Rg7+ (42. Rxc6 $2 {perishes.} Qxg3+ 43. Kxg3 Rc1 $19) 42... Kxg7 43. Qxb8 $18) 42. Rb7 {[%emt 0:00:30]} Re7 43. Rxe7 {[%emt 0:00:30]} Qxe7 44. Qc7 $2 {[%emt 0:00:30][%mdl 8192]} (44. Qg4 $11) 44... Qxc7+ $19 45. Bxc7 {[%emt 0:00:30][%mdl 4096] Endgame. [#] KB-KN} Kf7 $2 (45... c5 $1 $19 {[%cal Rc5d4]} 46. dxc5 Kf7) 46. f4 $2 {[%emt 0:00:30][%mdl 8192] [#]} (46. Kg1 $15) 46... Kg6 $2 (46... c5 $1 $19 {[%cal Rc5d4]} 47. fxg5 cxd4 48. cxd4 b4 (48... hxg5 $2 49. Bg3 $19)) 47. fxg5 {[%emt 0:00:30] The position is equal.} hxg5 48. Kg3 {[%emt 0:00:30]} Nd2 49. Ba5 {[%emt 0:00:30]} Kf5 50. Kf2 {[%emt 0:00:30]} g4 51. hxg4+ {[%emt 0:00:30]} Kxg4 52. Ke2 {[%emt 0:00:30]} Ne4 53. Bb4 {[%emt 0:00:30]} Kg3 54. Kf1 {[%emt 0:00:30]} Nd2+ 55. Kg1 $1 {[%emt 0:00:30]} Nc4 56. Bc5 {[%emt 0:00:30]} Kf4 57. Kf2 {[%emt 0:00:30]} Ne3 58. Bd6+ {[%emt 0:00:30]} Ke4 {White must now prevent ...Kd3.} 59. Bb4 $1 {[%emt 0:00:30]} Nc2 {Threatens to win with ...Nxb4.} (59... Kd3 $5 60. Kf3 $8 Nd1 $11) 60. Ba5 {[%emt 0:00:30]} b4 61. Bxb4 {[%emt 0:00:30]} Nxb4 62. cxb4 {[%emt 0:00:30]} Kxd4 {Strongly threatening ...Kc3.} 63. Ke2 {[%emt 0:00:30]} Ke4 (63... Kc4 $5 64. g4 $8 Kd4 $11 (64... Kxb4 65. g5 Kc3 66. g6 d4 67. g7 d3+ 68. Kd1 Kd4 69. g8=Q)) 64. g4 {[%emt 0:00:30]} Kf4 {Never resign too early!   Weighted Error Value: White=0.34/Black=0.35.  Loses game:     	White=1     	---        Mistake:       	White=4     	Black=4      Inaccurate:     	White=2     	Black=5      OK:         	White=26    	Black=21     Best:        	White=2     	Black=2      Strong:       	White=2     	---} 1/2-1/2